Workbook

Sheet unitwise
A1: SHRISTI SPECIAL ACADEMY
A2: MONTHLY / ANNUAL UNIT WISE BUDGET FOR THE YEAR 2 0 1 2 - 2 0 1 3
A4: PARTICULARS | F4: MONTHLY | G4: ANNUAL | H4: CHIGURU - SPECIAL | I4: CHIGURU NORMAL 47 Childrens | J4: EARLY INTERVENTION | K4: CARE GROUP | L4: PRIMARY 1 | M4: PRIMARY 2 | N4: SECONDARY UNIT | O4: PRE VOCATION | P4: TAILORING UNIT | Q4: VOCATIONAL UNIT | R4: SESSION BASE CAMPUS | S4: SESSION BASE AUTISM | T4: AUTISM UNIT | U4: TOTAL UNIT
A6: Number of Childrens in the Unit | H6: 9 | J6: 7 | K6: 4 | L6: 6 | M6: 10 | N6: 9 | O6: 7 | P6: 8 | Q6: 12 | R6: 10 | S6: 18 | T6: 17 | U6: =SUM(I6:T6) -> 108
A7: Percentage of Unit | H7: 8.33 | J7: 6.48 | K7: 3.7 | L7: 5.56 | M7: 9.26 | N7: 8.33 | O7: 6.48 | P7: 7.41 | Q7: 11.11 | R7: 9.26 | S7: 16.67 | T7: 15.74 | U7: =SUM(I7:T7) -> 100
H8: =+H6/U6*100 -> 8.333333333 | J8: =+J6/U6*100 -> 6.481481481 | K8: =+K6/U6*100 -> 3.703703704 | L8: =+L6/U6*100 -> 5.555555556 | M8: =+M6/U6*100 -> 9.259259259 | N8: =+N6/U6*100 -> 8.333333333 | O8: =+O6/U6*100 -> 6.481481481 | P8: =+P6/U6*100 -> 7.407407407 | Q8: =+Q6/U6*100 -> 11.11111111 | R8: =+R6/U6*100 -> 9.259259259 | S8: =+S6/U6*100 -> 16.66666667 | T8: =+T6/U6*100 -> 15.74074074 | U8: =SUM(I8:T8) -> 100
A9: PROGRAMME EXPENSES - Monthly
A10: SALARY & HONORARIUM - MULTI DISCIPLINARY TEAM | E10: 615000 | F10: =E10 -> 615000 | G10: =+F10*12 -> 7380000 | S10: =+S8*G10/100 -> 1230000 | T10: =+T8*G10/100 -> 1161666.667 | V10: =SUM(S10:T10) -> 2391666.667
A11: PROVIDENT FUND | E11: 52000
A12: NUTRITION | E12: =$D$62 -> 86000
A13: TRANSPORTATION - BENEFICIARIES | E13: =$D$68 -> 130000
A14: MEDICINES | E14: 11500
A15: COMMUNITY BASED REHABILITATION - TRANSPORT COST | E15: 3000 | F15: =SUM(E10:E15) -> 897500 | G15: =+F15*12 -> 10770000 | H15: =+H7*G15/100 -> 897141 | J15: =+J7*G15/100 -> 697896 | K15: =+K7*G15/100 -> 398490 | L15: =+L7*G15/100 -> 598812 | M15: =+M7*G15/100 -> 997302 | N15: =+N7*G15/100 -> 897141 | O15: =+O7*G15/100 -> 697896 | P15: =+P7*G15/100 -> 798057 | Q15: =+Q7*G15/100 -> 1196547 | R15: =+R7*G15/100 -> 997302 | S15: =+S7*G15/100 -> 1795359 | T15: =+T7*G15/100 -> 1695198 | U15: =SUM(I15:T15) -> 10770000 | V15: =SUM(S15:T15) -> 3490557
A17: PERIODIC PROGRAMME EXPENSES
A18: TEACHING AIDS | E18: 90000
A19: FIELD TRIPS & CELEBRATIONS | E19: 60000
A20: SPORTS, COMPETITIONS, SPECIAL OLYMPICS | E20: 48000
A21: FUNDRAISING EXPENSES | E21: 72000
A22: STAFF TRAINING & DEVELOPMENTAL EXPENSES | E22: 30000
A23: HORTICULTURE EXPENSES | E23: 24000 | G23: 324000 | H23: =+H7*G23/100 -> 26989.2 | J23: =+J7*G23/100 -> 20995.2 | K23: =+K7*G23/100 -> 11988 | L23: =+L7*G23/100 -> 18014.4 | M23: =+M7*G23/100 -> 30002.4 | N23: =+N7*G23/100 -> 26989.2 | O23: =+O7*G23/100 -> 20995.2 | P23: =+P7*G23/100 -> 24008.4 | Q23: =+Q7*G23/100 -> 35996.4 | R23: =+R7*G23/100 -> 30002.4 | S23: =+S7*G23/100 -> 54010.8 | T23: =+T7*G23/100 -> 50997.6 | U23: =SUM(I23:T23) -> 324000
A25: ADMINISTRATION EXPENSES
A26: TELEPHONE | E26: 9000
A27: ELECTRICITY - CAMPUS & AUTISM UNIT | E27: 5500
A28: CONVEYANCE - ADMIN | E28: 6000
A29: NEWS PAPER & PERIODICALS | E29: 300
A30: PRINTING & STATIONARY | E30: 5000
A31: POSTAGE & COURIERS | E31: 1000
A32: SECURITY CONTRACT | E32: 7000
A33: REPAIRS & MAINTENANCE | E33: 10000
A34: AUDIT & CONSULTATIONS | E34: 2000
A35: MISCELLANEOUS EXPENSES | E35: 9000 | F35: =SUM(E26:E35) -> 54800 | G35: =+F35*12 -> 657600 | H35: =+H7*G35/100 -> 54778.08 | J35: =+J7*G35/100 -> 42612.48 | K35: =+K7*G35/100 -> 24331.2 | L35: =+L7*G35/100 -> 36562.56 | M35: =+M7*G35/100 -> 60893.76 | N35: =+N7*G35/100 -> 54778.08 | O35: =+O7*G35/100 -> 42612.48 | P35: =+P7*G35/100 -> 48728.16 | Q35: =+Q7*G35/100 -> 73059.36 | R35: =+R7*G35/100 -> 60893.76 | S35: =+S7*G35/100 -> 109621.92 | T35: =+T7*G35/100 -> 103506.24 | U35: =SUM(I35:T35) -> 657600
A37: TOTAL REVENUE EXPENSES | F37: =SUM(F8:F36) -> 1567300 | G37: 19131600 | H37: 978916.6133 | J37: 761510.1615 | K37: 434812.9037 | L37: 653394.5156 | M37: 1088207.419 | N37: 978916.6133 | O37: 761510.1615 | P37: 870800.9674 | Q37: 1305613.871 | R37: 1088207.419 | S37: 3189008.387 | T37: 3011384.247 | U37: 11751700
A41: DEFICIT TO BE RECOVER FROM THE FOLOWING REVENUE
A43: PARENTS CONTRIBUTIONS RS.100000 x 12 Months | D43: =120000*12 -> 1440000
A45: MONTHLY SPONSORSHIP - 51850/- x 12 Months | D45: =51850*12 -> 622200
A47: H.P. DEEKSHA TRUST | D47: 500000
A49: TO BE REQUIRED TO COLLECT DONATIONS & OTHER GRANTS | D49: =11751600-2562200 -> 9189400
A51: TOTAL RECEIVABLE | D51: =SUM(D43:D50) -> 11751600
A54: NOTE :
A55: NUTRITION
A56: PROVISIONS | D56: 45000
A57: GAS | D57: 6000
A58: VEGETABLES | D58: 15000
A59: MILK | D59: 15000
A60: MISCELLANEOUS | D60: 5000
A62: TOTAL | D62: =SUM(D56:D60) -> 86000
A64: TRANSPORT FOR 3 BUSES, 1 TATA SUMO
A65: DIESEL FOR 2 BUSES & 1 TATA SUMO | D65: 60000
A66: BUS HIRE CHARGES - CONTRACT BASIS | D66: 57000
A67: VEHICLE MAINTENANCE 2 BUSES, 1 SUMO | D67: 13000
A68: TOTAL | D68: =SUM(D63:D67) -> 130000
A102: CHIGURU
B103: GOWRI
B104: CHANDRAKALA PRASAD
A106: E.I | B106: YASHODAMMA
A108: CARE GROUP | B108: VEENA CV
A110: PRIMARY 1 | B110: JYOTHI G
A112: PRIMARY 2 | B112: LAKKAMMA
A114: SECONDARY | B114: MANJULA SV
B115: JYOTHI.P
A117: PRE VOCATION | B117: PRADEEP
B118: DHANANJAYA
A120: VT | B120: RUDRESH
B121: DINAKAR
B122: MAHESH
A124: TAILORING | B124: JAYALAKSHMI
B125: BHAGYA
B126: PARVATHI
B127: NAUSHAD
B128: MOHAMED
A130: SESSION BAS | B130: SR MANJULA
